bitfinex/quotes_SOLUSD_20250419
["timestamp","ask_amount","ask_price","bid_price","bid_amount"]
[1745050539307,5.3900917,138.46,138.45,7.78776281]
[1745050548094,8.07766295,138.46,138.45,7.78776281]
[1745050548499,8.07766295,138.46,138.45,15.01058693]
[1745050549010,5.3900917,138.46,138.45,15.01058693]
[1745050549222,5.3900917,138.46,138.45,7.78776281]
[1745050554118,0.03,138.47,138.45,7.78776281]
[1745050554327,0.03,138.47,138.46,7.78776281]
[1745050555228,5.40057647,138.47,138.46,7.78776281]
[1745050559027,0.03,138.47,138.46,15.01006528]
[1745050560351,0.03,138.47,138.46,7.78776281]
[1745050560830,0.03,138.47,138.45,7.78776281]
[1745050561835,0.03,138.47,138.46,7.78776281]
[1745050565434,5.39925637,138.47,138.46,7.78776281]
[1745050565910,0.03,138.47,138.46,7.78776281]
[1745050568039,5.40050321,138.47,138.46,7.78776281]
[1745050570026,0.03,138.47,138.46,7.78776281]
[1745050578841,7.81776281,138.47,138.43,7.78776281]
[1745050579033,18.64964886,138.44,138.39,0.063]
[1745050579236,7.78776281,138.42,138.39,0.063]
[1745050579551,7.78776281,138.43,138.39,0.063]
[1745050580047,7.22438953,138.42,138.39,0.063]
[1745050581442,15.01215234,138.42,138.39,0.063]
[1745050581640,7.22438953,138.42,138.39,7.85076281]
[1745050582147,7.22438953,138.42,138.39,0.063]
[1745050582651,7.22438953,138.42,138.39,7.85076281]
[1745050583249,7.22438953,138.42,138.39,0.063]
[1745050583446,7.78776281,138.42,138.39,0.063]
[1745050583652,27.99541167,138.41,138.39,0.063]
[1745050584032,9.34576281,138.41,138.39,0.063]
[1745050584653,1.558,138.41,138.39,0.063]
[1745050586450,7.22401775,138.43,138.39,7.85076281]
[1745050586753,7.22401775,138.43,138.4,7.78776281]
[1745050587252,7.22401775,138.43,138.39,7.85076281]
[1745050589953,15.01178056,138.43,138.39,7.85076281]
[1745050590155,18.64964886,138.42,138.39,0.063]
[1745050590450,7.78776281,138.41,138.39,0.063]
[1745050591853,7.22543352,138.4,138.39,0.063]
[1745050593554,33.66284519,138.4,138.39,0.063]
[1745050593732,35.17644519,138.4,138.39,0.063]
[1745050594240,27.38868238,138.4,138.39,0.063]
[1745050594833,7.22543352,138.4,138.39,0.063]
[1745050598259,15.01319633,138.4,138.39,0.063]
[1745050599546,20.71934256,138.4,138.39,0.063]
[1745050602050,13.49390904,138.4,138.39,0.063]
[1745050602237,13.49390904,138.4,138.39,7.85076281]
[1745050602560,15.32104078,138.4,138.39,0.063]
[1745050602739,8.09560726,138.4,138.39,0.063]
[1745050603064,5.39707151,138.4,138.39,0.063]
[1745050603861,5.39707151,138.4,138.39,7.85076281]
[1745050604053,5.39707151,138.41,138.39,7.85076281]
[1745050605162,7.22443612,138.42,138.39,0.063]
[1745050606660,2.67965426,138.41,138.39,0.063]
[1745050607163,5.35875108,138.4,138.39,0.063]
[1745050608064,5.35875108,138.41,138.39,0.063]
[1745050609165,7.22443612,138.42,138.39,0.063]
[1745050609865,5.36192098,138.41,138.39,0.063]
[1745050610366,5.36387243,138.4,138.39,0.063]
[1745050611170,10.72579341,138.4,138.39,0.063]
[1745050612165,13.41157445,138.4,138.39,0.063]
[1745050612468,8.04965347,138.4,138.39,0.063]
[1745050614470,13.44735306,138.4,138.39,0.063]
[1745050625356,20.67278658,138.4,138.39,0.063]
[1745050626486,39.32243544,138.4,138.39,0.063]
[1745050627360,47.11019825,138.4,138.39,0.063]
[1745050632183,48.64239825,138.4,138.39,0.063]
[1745050632682,18.64964886,138.39,138.38,0.063]
[1745050633163,29.12319271,138.39,138.38,0.063]
[1745050633367,21.3354299,138.39,138.38,0.063]
[1745050633666,26.73312949,138.39,138.38,0.063]
[1745050633875,32.09700192,138.39,138.38,0.063]
[1745050635172,39.32295755,138.39,138.38,0.063]
[1745050638890,47.11072036,138.39,138.38,0.063]
[1745050641270,13.44735306,138.39,138.38,0.063]
[1745050641476,20.67330869,138.39,138.38,0.063]
[1745050653900,39.32295755,138.39,138.38,0.063]
[1745050664897,47.11072036,138.39,138.38,0.063]
[1745050669927,20.67330869,138.39,138.38,0.063]
[1745050670105,39.32295755,138.39,138.38,0.063]
[1745050670611,47.11072036,138.39,138.38,0.063]
[1745050674920,47.11072036,138.39,138.34,7.85076281]
[1745050675103,18.64964886,138.37,138.34,7.85076281]
[1745050675509,2.68578104,138.36,138.34,7.85076281]
[1745050676101,2.68578104,138.35,138.34,7.85076281]
[1745050676322,13.44735306,138.35,138.34,7.85076281]
[1745050680441,13.44735306,138.35,138.34,0.063]
[1745050680624,13.44735306,138.35,138.34,7.85076281]
[1745050682614,39.32504673,138.35,138.34,0.063]
[1745050683620,47.11280954,138.35,138.34,0.063]
[1745050684302,39.32504673,138.35,138.34,0.063]
[1745050684710,13.44735306,138.35,138.34,7.85076281]
[1745050687522,15.5927,138.44,138.34,15.0793301]
[1745050687825,18.64964886,138.43,138.4,7.78776281]
[1745050688128,41.5927,138.44,138.4,7.78776281]
[1745050688420,25.87351651,138.43,138.4,7.78776281]
[1745050689325,25.87351651,138.43,138.41,7.78776281]
[1745050691310,21.26349146,138.44,138.42,7.78776281]
[1745050691614,21.26349146,138.44,138.43,7.78776281]
[1745050692127,14.04,138.44,138.43,7.78776281]
[1745050694725,7.25297105,138.45,138.43,7.78776281]
[1745050695021,7.25297105,138.45,138.44,7.78776281]
[1745050695022,0.03,138.45,138.44,7.78776281]
[1745050704231,0.03,138.45,138.44,41.01110866]
[1745050704432,0.03,138.46,138.44,41.01110866]
[1745050704634,0.03,138.46,138.45,7.78776281]
[1745050704939,0.03,138.47,138.45,13.82286281]
[1745050705133,0.03,138.47,138.46,7.78776281]
[1745050707033,0.03,138.47,138.46,15.01006528]
[1745050710141,0.03,138.47,138.46,7.78776281]
[1745050714141,0.03,138.47,138.46,7.73789975]
[1745050728145,0.03,138.47,138.46,14.96020222]
[1745050728846,0.03,138.47,138.46,7.73789975]
[1745050730635,0.03,138.47,138.4,38.43929609]
[1745050730952,0.03,138.47,138.43,7.78776281]
[1745050731845,7.25178089,138.47,138.43,7.78776281]
[1745050732052,5.24217912,138.46,138.43,7.78776281]
[1745050732652,7.25178089,138.47,138.44,7.78776281]
[1745050734448,5.37948195,138.46,138.44,7.78776281]
[1745050735456,12.47422668,138.45,138.44,7.78776281]
[1745050736456,5.25140256,138.45,138.44,7.78776281]
[1745050736644,0.03,138.47,138.46,26.0]
[1745050736852,7.24999527,138.51,138.46,64.93881405]
[1745050737157,7.24999527,138.51,138.49,7.78776281]
[1745050737563,5.41460325,138.5,138.49,7.78776281]
[1745050737853,12.63492188,138.5,138.49,7.78776281]
[1745050738062,7.25031863,138.5,138.49,7.78776281]
[1745050738442,0.03,138.5,138.49,7.78776281]
[1745050739657,2.72484974,138.5,138.49,7.78776281]
[1745050741958,0.03,138.5,138.49,7.78776281]
[1745050745659,0.03,138.5,138.49,15.00850076]
[1745050746044,0.03,138.5,138.49,7.78776281]
[1745050752867,0.03,138.5,138.49,15.00850076]
[1745050754069,0.03,138.5,138.49,7.78776281]
[1745050757169,0.03,138.5,138.49,15.00850076]
[1745050757671,0.03,138.5,138.49,7.78776281]
[1745050758170,0.03,138.5,138.49,15.00850076]
[1745050761474,0.03,138.51,138.49,15.00850076]
[1745050761682,0.03,138.53,138.51,7.78776281]
[1745050761875,0.03,138.53,138.52,7.78776281]
[1745050764479,0.03,138.53,138.52,15.00693693]
[1745050764688,0.03,138.54,138.52,41.00693693]
[1745050764979,0.03,138.54,138.53,7.78776281]
[1745050765565,0.03,138.54,138.53,15.0064158]
[1745050768688,0.03,138.54,138.53,7.78776281]
[1745050771980,0.03,138.54,138.53,15.0064158]
[1745050773190,0.03,138.54,138.53,7.78776281]
[1745050778493,0.03,138.54,138.53,15.0064158]
[1745050779867,0.03,138.55,138.54,7.78776281]
[1745050780689,0.03,138.55,138.54,15.00589475]
[1745050783391,0.03,138.55,138.54,41.00589475]
[1745050784684,0.03,138.56,138.54,72.15694599]
[1745050784891,0.03,138.56,138.55,38.93881405]
[1745050785091,0.03,138.56,138.55,7.78776281]
[1745050786195,0.03,138.56,138.55,15.00537378]
[1745050787199,0.03,138.57,138.55,64.80607388]
[1745050787393,0.03,138.57,138.56,64.93881405]
[1745050787597,0.03,138.57,138.56,33.78776281]
[1745050788098,0.03,138.57,138.56,64.93881405]
[1745050788502,0.03,138.57,138.56,41.00485287]
[1745050788689,0.03,138.57,138.56,33.78776281]
[1745050790683,0.03,138.57,138.51,14.02]
[1745050790886,14.03776281,138.57,138.52,7.78776281]
[1745050792493,7.21709006,138.56,138.52,7.78776281]
[1745050798603,7.21709006,138.56,138.53,7.78776281]
[1745050798807,7.21709006,138.56,138.51,7.21969347]
[1745050798995,7.21709006,138.56,138.53,7.78776281]
[1745050801111,7.21709006,138.56,138.52,7.78776281]
[1745050803703,7.21709006,138.56,138.53,7.78776281]
[1745050803909,7.21709006,138.56,138.52,7.78776281]
[1745050806318,7.21709006,138.56,138.53,7.78776281]
[1745050808517,7.21709006,138.56,138.54,7.78776281]
[1745050809412,7.24669375,138.57,138.55,7.78776281]
[1745050811217,0.03,138.57,138.56,7.78776281]
[1745050820223,0.03,138.57,138.56,72.15590411]
[1745050822227,0.03,138.57,138.56,41.00485287]
[1745050823530,0.03,138.57,138.56,72.15590411]
[1745050832431,0.01962859,138.63,138.56,72.15590411]
[1745050832635,0.01962859,138.63,138.61,7.78776281]
[1745050833327,0.01962859,138.63,138.62,7.78776281]
[1745050836735,0.01962859,138.63,138.62,15.00172904]
[1745050837436,0.01962859,138.63,138.62,41.00172904]
[1745050837830,0.01962859,138.63,138.62,33.78776281]
[1745050838620,0.01962859,138.63,138.62,41.00172904]
[1745050838826,0.01962859,138.63,138.62,7.78776281]
[1745050839240,0.01962859,138.63,138.61,7.78776281]
[1745050844020,0.01962859,138.63,138.6,33.21483756]
[1745050844021,0.01962859,138.63,138.62,7.78776281]
[1745050846331,0.01962859,138.63,138.58,33.21583413]
[1745050846531,1.59392859,138.63,138.6,7.78776281]
[1745050846732,1.59392859,138.63,138.58,33.21583413]
[1745050846933,1.59392859,138.63,138.6,7.78776281]
[1745050847840,8.80744663,138.63,138.6,7.78776281]
[1745050849444,1.59392859,138.63,138.6,7.78776281]
[1745050851542,1.59392859,138.63,138.61,7.78776281]
[1745050851743,0.01962859,138.63,138.62,7.78776281]
[1745050854134,0.01962859,138.63,138.61,7.78776281]
[1745050857347,0.01962859,138.63,138.59,33.78776281]
[1745050857848,6.8373914,138.64,138.59,33.78776281]
[1745050858150,14.05055259,138.64,138.59,33.78776281]
[1745050858354,7.21316119,138.64,138.6,7.78776281]
[1745050862436,7.78776281,138.66,138.61,7.78776281]
[1745050862753,2.69098234,138.65,138.62,7.78776281]
[1745050863253,2.69098234,138.64,138.62,7.78776281]
[1745050864049,2.69098234,138.64,138.63,7.78776281]
[1745050864256,2.69098234,138.66,138.63,7.78776281]
[1745050864557,2.69098234,138.66,138.64,7.78776281]
[1745050865129,2.69098234,138.66,138.63,7.78776281]
[1745050865356,1.5743,138.67,138.63,7.78776281]
[1745050865651,8.78602165,138.67,138.63,7.78776281]
[1745050867151,2.69182879,138.66,138.63,7.78776281]
[1745050867355,2.69182879,138.66,138.64,7.78776281]
[1745050868136,8.78602165,138.67,138.64,7.78776281]
[1745050872560,0.03,138.68,138.64,7.78776281]
[1745050872740,2.69259337,138.67,138.66,7.78776281]
[1745050873755,0.03,138.68,138.66,7.78776281]
[1745050873952,0.03,138.68,138.67,7.78776281]
[1745050874845,0.03,138.68,138.67,14.99912792]
[1745050877464,0.03,138.68,138.67,7.78776281]
[1745050883365,0.03,138.68,138.66,33.78776281]
[1745050883665,0.03,138.68,138.64,7.78776281]
[1745050883972,7.21136511,138.67,138.64,7.78776281]
[1745050884269,7.21136511,138.67,138.63,14.0]
[1745050884470,7.21136511,138.67,138.64,7.78776281]
[1745050886271,15.02860792,138.68,138.64,7.78776281]
[1745050886466,15.02860792,138.68,138.63,7.78776281]
[1745050887277,15.02860792,138.68,138.64,7.78776281]
[1745050888179,7.24084511,138.68,138.64,7.78776281]
[1745050888473,7.24084511,138.68,138.65,7.78776281]
[1745050890168,0.03,138.68,138.66,7.78776281]
[1745050890603,0.03,138.68,138.67,7.78776281]
[1745050913392,0.03,138.68,138.67,14.99912792]
[1745050913988,0.03,138.68,138.67,7.78776281]
[1745050914183,0.03,138.68,138.67,14.99912792]
[1745050915596,0.03,138.68,138.67,7.78776281]
[1745050915793,0.03,138.68,138.67,14.99912792]
[1745050916296,0.03,138.68,138.67,7.78776281]
[1745050917394,0.03,138.68,138.67,14.99912792]
[1745050919191,0.03,138.68,138.67,33.64877678]
[1745050924203,0.03,138.68,138.67,41.63987678]
[1745050929408,0.03,138.68,138.67,40.09367678]
[1745050931109,0.03,138.68,138.67,33.64877678]
[1745050937414,0.03,138.68,138.63,82.17]
[1745050937617,0.03,138.68,138.66,7.78776281]
[1745050938012,0.03,138.68,138.67,7.78776281]
[1745050938622,0.03,138.68,138.66,7.78776281]
[1745050939723,0.03,138.68,138.65,7.78776281]
[1745050942604,0.03,138.68,138.63,18.64964886]
[1745050942803,0.03,138.68,138.67,7.78776281]
[1745050945124,0.03,138.68,138.67,14.99912792]
[1745050945723,0.03,138.68,138.67,7.21136511]
[1745050945902,0.03,138.68,138.67,14.99912792]
[1745050947427,0.03,138.68,138.67,7.78776281]
[1745050948225,0.03,138.68,138.67,14.99912792]
[1745050952748,0.03,138.68,138.67,7.78776281]
[1745050952957,0.03,138.68,138.66,7.78776281]
[1745050954367,0.03,138.68,138.67,7.78776281]
[1745050957761,0.03,138.68,138.67,14.99912792]
[1745050959465,0.03,138.68,138.67,33.64877678]
[1745050965069,0.03,138.68,138.67,47.64877678]
[1745050969288,0.03,138.68,138.67,155.81877678]
[1745050969468,0.03,138.72,138.7,18.64964886]
[1745050969669,0.03,138.72,138.71,7.78776281]
[1745050971567,0.03,138.72,138.71,33.64669722]
[1745050976387,0.03,138.74,138.71,51.66991111]
[1745050976587,0.03,138.74,138.73,7.78776281]
[1745050977184,0.03,138.74,138.73,14.99600904]
[1745050978692,0.03,138.74,138.73,33.6456579]
[1745050980290,0.03,138.74,138.73,14.99600904]
[1745050981372,0.03,138.77,138.73,14.99600904]
[1745050981571,0.03,138.77,138.76,7.78776281]
[1745050982899,0.03,138.77,138.76,14.99445061]
[1745050983692,0.03,138.77,138.72,49.8007001]
[1745050983898,0.03,138.77,138.76,7.78776281]
[1745050985084,0.03,138.77,138.76,14.99445061]
[1745050985687,0.03,138.77,138.76,7.78776281]
[1745050986495,0.03,138.77,138.76,14.99445061]
[1745050988104,0.03,138.77,138.76,7.78776281]
[1745050988504,0.03,138.77,138.75,7.20700055]
[1745050988708,0.03,138.77,138.76,7.78776281]
[1745050990904,0.03,138.77,138.75,7.20700055]
[1745050990905,0.03,138.77,138.75,7.78776281]
[1745050993208,0.03,138.77,138.74,7.78776281]
[1745050993808,7.81776281,138.77,138.72,14.99631981]
[1745050994214,7.78776281,138.76,138.71,21.78776281]
[1745050994389,7.78776281,138.74,138.67,82.233]
[1745050994710,7.78776281,138.71,138.67,0.063]
[1745050994888,7.78776281,138.72,138.67,0.063]
[1745050995090,7.20980533,138.7,138.67,0.063]
[1745050995390,1.5212,138.69,138.67,0.063]
[1745050996608,1.5212,138.69,138.67,7.85076281]
[1745050996805,8.7298703,138.73,138.68,7.78776281]
[1745050996998,8.7298703,138.73,138.69,7.78776281]
[1745050998009,8.7298703,138.73,138.7,7.78776281]
[1745050998010,1.5212,138.73,138.7,7.78776281]
[1745051003013,1.5212,138.73,138.68,7.21065117]
[1745051003194,1.5212,138.73,138.7,7.78776281]
[1745051003390,1.5212,138.73,138.71,7.78776281]
[1745051003594,42.50225306,138.76,138.71,7.78776281]
[1745051004108,34.71449025,138.76,138.71,7.78776281]
[1745051004315,42.50225306,138.76,138.71,7.78776281]
[1745051010014,7.78776281,138.75,138.68,7.21084511]
[1745051010199,7.78776281,138.74,138.68,7.21084511]
[1745051010398,7.78776281,138.74,138.69,7.78776281]
[1745051011716,7.78776281,138.74,138.7,7.78776281]
[1745051011898,14.99539021,138.75,138.7,7.78776281]
[1745051014432,14.99539021,138.75,138.7,14.99753808]
[1745051014722,7.78776281,138.71,138.67,0.063]
[1745051014910,7.78776281,138.68,138.67,0.063]
[1745051016119,14.99860792,138.68,138.67,0.063]
[1745051018423,14.99818298,138.69,138.67,0.063]
[1745051018630,7.21042017,138.69,138.67,0.063]
[1745051021624,14.99818298,138.69,138.67,0.063]
[1745051023129,7.78776281,138.68,138.67,0.063]
[1745051026613,16.58668692,138.7,138.67,0.063]
[1745051026814,8.79892411,138.7,138.67,7.85076281]
[1745051027039,8.79892411,138.7,138.67,0.063]
[1745051031440,7.21002411,138.7,138.67,0.063]
[1745051038655,14.9972693,138.71,138.67,7.85076281]
[1745051040849,14.9972693,138.71,138.67,0.063]
[1745051042553,14.9972693,138.71,138.67,7.85076281]
[1745051042949,7.20896313,138.72,138.68,7.78776281]
[1745051043348,8.74674687,138.73,138.69,7.78776281]
[1745051047456,8.74674687,138.73,138.69,14.99803839]
[1745051048156,16.53450968,138.73,138.67,0.063]
[1745051048356,16.53450968,138.73,138.68,7.78776281]
[1745051049552,7.78776281,138.72,138.67,7.85076281]
[1745051051259,7.78776281,138.72,138.67,15.06211126]
[1745051051439,16.53450968,138.73,138.69,7.78776281]
[1745051051637,8.74674687,138.73,138.69,7.78776281]
[1745051051966,16.53450968,138.73,138.69,7.78776281]
[1745051052258,16.53450968,138.73,138.68,7.78776281]
[1745051054961,16.53450968,138.73,138.68,14.99838143]
[1745051055150,16.53450968,138.73,138.69,7.78776281]
[1745051056072,14.99568699,138.74,138.69,14.99795597]
[1745051056251,14.99568699,138.74,138.7,7.78776281]
[1745051056446,7.20739436,138.75,138.71,7.78776281]
[1745051056974,2.68910651,138.74,138.71,7.78776281]
[1745051057176,2.68910651,138.74,138.7,7.78776281]
[1745051058165,14.99515717,138.75,138.7,7.78776281]
[1745051059075,14.99515717,138.75,138.7,14.99749179]
[1745051059276,14.99515717,138.75,138.71,7.78776281]
[1745051059977,14.99515717,138.75,138.7,14.99749179]
[1745051060177,7.78776281,138.74,138.7,7.78776281]
[1745051060956,7.78776281,138.74,138.69,7.78776281]
[1745051061162,7.78776281,138.73,138.69,7.78776281]
[1745051061376,7.78776281,138.74,138.69,7.78776281]
[1745051061979,7.78776281,138.74,138.7,7.78776281]
[1745051063387,7.78776281,138.75,138.7,7.78776281]
[1745051064090,2.68902032,138.74,138.7,7.78776281]
[1745051064786,2.68902032,138.74,138.71,7.78776281]
[1745051064968,16.57577825,138.77,138.73,7.78776281]
[1745051065666,2.68815297,138.76,138.73,7.78776281]
[1745051066465,16.57577825,138.77,138.73,7.78776281]
[1745051066665,7.23631544,138.77,138.73,7.78776281]
[1745051066889,0.03,138.77,138.73,14.99600003]
[1745051068768,0.03,138.77,138.74,7.78776281]
[1745051069870,0.03,138.77,138.73,7.78776281]
[1745051072485,7.81776281,138.77,138.73,7.78776281]
[1745051073987,15.0240992,138.77,138.73,7.78776281]
[1745051075484,15.0240992,138.77,138.72,7.78776281]
[1745051075687,7.78776281,138.75,138.7,40.99739105]
[1745051075982,14.99546772,138.75,138.7,33.78776281]
[1745051078890,14.99546772,138.75,138.7,26.0]
[1745051079189,7.78776281,138.74,138.7,26.0]
[1745051080587,7.20770491,138.75,138.7,33.78776281]
[1745051080588,14.99546772,138.75,138.7,33.78776281]
[1745051085196,9.89881705,138.74,138.7,33.78776281]
[1745051086304,7.20812246,138.74,138.7,33.78776281]
[1745051091211,7.20812246,138.74,138.69,7.2101392]
[1745051091212,1.5286,138.72,138.67,0.063]
[1745051091414,9.31636281,138.72,138.67,0.063]
[1745051091608,9.31636281,138.72,138.67,7.85076281]
[1745051091609,1.5286,138.72,138.67,7.85076281]
[1745051092088,9.31636281,138.72,138.67,7.85076281]
[1745051093207,7.20980533,138.7,138.67,7.85076281]
[1745051095211,7.20928555,138.71,138.67,7.85076281]
[1745051096809,9.31636281,138.72,138.67,7.85076281]
[1745051096810,7.20898666,138.72,138.68,7.78776281]
[1745051098113,2.69030489,138.71,138.68,7.78776281]
[1745051099006,7.20898666,138.72,138.68,7.78776281]
[1745051103131,1.5389,138.75,138.69,7.78776281]
[1745051103324,7.78776281,138.74,138.69,7.78776281]
[1745051104430,14.99571415,138.74,138.69,14.99801951]
[1745051104620,7.20795134,138.74,138.7,7.78776281]
[1745051106436,16.53404279,138.75,138.71,7.78776281]
[1745051106734,7.20688163,138.76,138.72,7.78776281]
[1745051107129,0.03,138.77,138.73,7.78776281]
[1745051107724,0.03,138.77,138.74,7.78776281]
[1745051109630,0.03,138.77,138.74,14.99520219]
[1745051109826,0.03,138.77,138.72,7.20856927]
[1745051110032,7.81776281,138.77,138.72,33.78776281]
[1745051110628,7.81776281,138.77,138.72,26.0]
[1745051111136,7.81776281,138.77,138.72,33.78776281]
[1745051111437,7.78776281,138.76,138.72,26.0]
[1745051111629,7.2072072,138.75,138.71,7.78776281]
[1745051111830,7.78776281,138.72,138.67,0.063]
[1745051112137,7.78776281,138.7,138.67,0.063]
[1745051112340,7.78776281,138.7,138.67,26.063]
[1745051112639,7.78776281,138.7,138.67,0.063]
[1745051112837,7.78776281,138.7,138.67,26.063]
[1745051113038,7.78776281,138.71,138.67,26.063]
[1745051113427,7.78776281,138.7,138.67,0.063]
[1745051114045,7.21032518,138.69,138.67,0.063]
[1745051115344,14.99808799,138.69,138.67,0.063]
[1745051116438,14.16206799,138.69,138.67,0.063]
[1745051118541,7.78776281,138.68,138.67,0.063]
[1745051119133,7.78776281,138.69,138.67,0.063]
[1745051119640,7.78776281,138.7,138.67,0.063]
[1745051121849,14.99775349,138.7,138.67,0.063]
[1745051125946,7.78776281,138.68,138.67,0.063]
[1745051127946,16.55670549,138.69,138.67,0.063]
[1745051130661,7.78776281,138.68,138.67,0.063]
[1745051131740,26.43741167,138.68,138.67,0.063]
[1745051133659,36.33437212,138.68,138.67,0.063]
[1745051137969,7.78776281,138.68,138.67,0.063]
[1745051138952,14.99860792,138.68,138.67,0.063]
[1745051144168,14.99829258,138.69,138.67,0.063]
[1745051147252,14.1,138.71,138.67,0.063]
[1745051147452,21.88776281,138.71,138.67,0.063]
[1745051147653,21.88776281,138.71,138.67,7.85076281]
[1745051148177,21.88776281,138.71,138.67,0.063]
[1745051148572,29.09721448,138.71,138.67,0.063]
[1745051151390,14.99721448,138.71,138.67,0.063]
[1745051154564,9.89831164,138.7,138.67,0.063]
[1745051155188,7.20987112,138.7,138.67,0.063]
[1745051157795,2.6919858,138.69,138.67,0.063]
[1745051158590,7.20987112,138.7,138.67,0.063]
[1745051160771,14.99728583,138.71,138.67,0.063]
[1745051161492,2.69105427,138.7,138.67,0.063]
[1745051162078,9.90099391,138.7,138.67,0.063]
[1745051162467,7.20993964,138.7,138.67,0.063]
[1745051163868,19.64024287,138.73,138.68,7.78776281]
[1745051163869,16.6156995,138.73,138.68,7.78776281]
[1745051164067,14.9961995,138.73,138.69,7.78776281]
[1745051164484,2.69106823,138.72,138.69,14.99806151]
[1745051165073,2.69106823,138.72,138.69,7.78776281]
[1745051165397,14.9961995,138.73,138.68,14.9983671]
[1745051170193,14.9961995,138.73,138.69,7.78776281]
[1745051170974,14.9961995,138.73,138.68,14.9983671]
[1745051171877,7.20843669,138.73,138.69,7.78776281]
[1745051173997,14.9961995,138.73,138.68,14.9983671]
[1745051176283,29.19566087,138.74,138.69,7.78776281]
[1745051176884,7.78776281,138.74,138.7,7.78776281]
[1745051177090,7.2374103,138.75,138.71,7.78776281]
[1745051177896,15.02517311,138.75,138.71,7.78776281]
[1745051178090,15.02517311,138.75,138.7,14.99734165]
[1745051180506,7.78776281,138.74,138.7,14.99734165]
[1745051181587,7.23762881,138.75,138.7,14.99734165]
[1745051181787,0.03,138.75,138.71,7.78776281]
[1745051182294,0.03,138.75,138.72,7.78776281]
[1745051184410,0.03,138.75,138.71,7.20891023]
[1745051184411,0.03,138.75,138.71,14.99667304]
[1745051187209,0.03,138.75,138.72,7.78776281]
[1745051188109,0.03,138.75,138.73,7.20824623]
[1745051189108,0.03,138.75,138.72,14.99628875]
[1745051196105,0.03,138.75,138.73,7.78776281]
[1745051197015,0.03,138.75,138.72,14.99628875]
[1745051204823,0.03,138.75,138.73,14.99585659]
[1745051205023,0.03,138.75,138.74,7.78776281]
[1745051207725,0.03,138.75,138.74,14.99548949]
[1745051207909,0.03,138.75,138.74,7.78776281]
[1745051218025,0.03,138.75,138.7,26.0]
[1745051218212,0.03,138.75,138.71,7.78776281]
[1745051218406,7.81776281,138.75,138.69,7.21022802]
[1745051218618,14.99600904,138.73,138.69,7.78776281]
[1745051218820,14.99600904,138.73,138.69,33.78776281]
[1745051219516,14.99600904,138.73,138.69,7.78776281]
[1745051219725,14.99600904,138.73,138.7,26.0]
[1745051220731,7.78776281,138.74,138.7,26.0]
[1745051221333,7.78776281,138.74,138.7,33.78776281]
[1745051221530,0.03,138.75,138.73,7.78776281]
[1745051222115,0.03,138.75,138.72,7.78776281]
[1745051227041,0.03,138.75,138.73,7.78776281]
[1745051227241,0.03,138.75,138.72,7.78776281]
[1745051232550,0.03,138.75,138.71,7.78776281]
[1745051233950,0.03,138.75,138.71,14.99693779]
[1745051238849,0.03,138.75,138.72,7.78776281]
[1745051240449,0.03,138.75,138.7,33.78776281]
[1745051240654,0.03,138.75,138.7,26.0]
[1745051240878,7.78776281,138.74,138.7,26.0]
[1745051241254,7.81776281,138.75,138.7,33.78776281]
[1745051241656,7.20772668,138.74,138.7,33.78776281]
[1745051244155,7.23738045,138.75,138.71,7.78776281]
[1745051244357,7.23738045,138.75,138.72,7.78776281]
[1745051246352,7.23738045,138.75,138.71,7.78776281]
[1745051251172,15.02514326,138.75,138.7,33.78776281]
[1745051252974,7.23738045,138.75,138.71,7.78776281]
[1745051254678,7.23738045,138.75,138.7,26.0]
[1745051254975,7.23738045,138.75,138.71,7.78776281]
[1745051255974,15.02514326,138.75,138.7,33.78776281]
[1745051256877,7.78776281,138.74,138.7,26.0]
[1745051257355,7.23738045,138.75,138.7,26.0]
[1745051257558,7.78776281,138.74,138.7,26.0]
[1745051258376,7.20824623,138.73,138.7,26.0]
[1745051261284,7.2372072,138.75,138.7,26.0]
[1745051261481,7.78776281,138.74,138.7,26.0]
[1745051261681,15.02497001,138.75,138.7,33.78776281]
[1745051262782,7.78776281,138.74,138.7,26.0]
[1745051262960,7.78776281,138.73,138.68,7.78776281]
[1745051263159,7.78776281,138.73,138.68,33.78776281]
[1745051263573,14.99548949,138.74,138.68,33.21083266]